bitfinex-derivatives/quotes_SOLF0:USTF0_20240824
["timestamp","ask_amount","ask_price","bid_price","bid_amount"]
[1724522230277,19.07,160.86,160.76,3.6406]
[1724522230467,0.04701006,160.83,160.77,1.02081155]
[1724522230663,0.04701006,160.83,160.78,3.07827873]
[1724522230869,19.07,160.82,160.75,3.15810896]
[1724522231069,19.07,160.78,160.7,1.2234]
[1724522231269,0.04020936,160.76,160.7,4.35852283]
[1724522231474,0.04020936,160.76,160.7,1.2234]
[1724522231665,0.04020936,160.76,160.71,3.17892074]
[1724522231872,0.04020936,160.76,160.75,3.109]
[1724522232165,0.04020936,160.76,160.7,1.2234]
[1724522232166,0.04020936,160.76,160.71,1.3201]
[1724522232374,0.04020936,160.76,160.75,3.109]
[1724522233769,0.04020936,160.76,160.73,3.1093]
[1724522233979,0.04020936,160.76,160.71,1.3201]
[1724522234477,0.04020936,160.76,160.63,228.15874793]
[1724522234478,19.07,160.72,160.63,228.15874793]
[1724522234681,19.07,160.72,160.59,24.84]
[1724522234682,0.04684548,160.69,160.64,4.71797721]
[1724522235075,0.04684548,160.69,160.64,3.6963]
[1724522235270,19.11684548,160.69,160.54,225.0]
[1724522235489,19.11684548,160.69,160.49,24.84]
[1724522235490,0.04742948,160.63,160.62,3.09503843]
[1724522235679,0.0406815,160.64,160.63,3.1113]
[1724522235974,0.0455808,160.65,160.62,19.07]
[1724522236182,19.07,160.75,160.66,3.1105]
[1724522236486,2.4954,160.76,160.63,1.2718]
[1724522236487,19.07,160.73,160.63,1.2718]
[1724522236686,19.07,160.73,160.68,3.1102]
[1724522236980,1.2874,160.76,160.67,19.07]
[1724522237183,0.04491835,160.73,160.71,3.1098]
[1724522237476,0.04491835,160.73,160.7,0.04277926]
[1724522237682,19.11491835,160.73,160.7,0.04277926]
[1724522238082,19.07,160.72,160.7,0.04277926]
[1724522238478,23.88,160.71,160.7,0.04277926]
[1724522239990,23.88,160.71,160.52,340.0]
[1724522240188,1.2244,160.75,160.58,1.02212699]
[1724522240189,23.88,160.66,160.58,1.02212699]
[1724522240491,1.2244,160.75,160.65,3.1109]
[1724522240492,23.88,160.69,160.65,3.1109]
[1724522240876,23.92718085,160.69,160.57,23.88]
[1724522241179,0.04165457,160.65,160.61,3.17532932]
[1724522241880,0.04165457,160.65,160.57,23.88]
[1724522242080,0.04165457,160.65,160.64,3.1111]
[1724522242687,0.04165457,160.65,160.64,6.29389264]
[1724522242887,4.3963,160.76,160.61,2.5034]
[1724522242888,28.29546167,160.76,160.65,23.88]
[1724522243183,25.1674,160.76,160.65,23.88]
[1724522243386,25.1674,160.76,160.7,3.1099]
[1724522243587,28.22704795,160.76,160.68,3.07364167]
[1724522243785,25.1674,160.76,160.65,23.88]
[1724522243987,25.1674,160.76,160.65,27.03911394]
[1724522244189,25.1674,160.76,160.71,3.1096]
[1724522244190,0.03973566,160.74,160.71,3.1096]
[1724522244825,23.88,160.73,160.61,2.5034]
[1724522245003,4.39832354,160.76,160.61,1.2134]
[1724522245004,23.88,160.66,160.61,1.2134]
[1724522245287,23.88,160.69,160.64,3.1109]
[1724522245480,23.88,160.69,160.6,3.04034792]
[1724522245686,23.88,160.69,160.58,23.88]
[1724522245891,0.04185864,160.65,160.58,23.88]
[1724522246281,0.04185864,160.65,160.54,1.2418]
[1724522246485,0.04740045,160.61,160.55,1.02217785]
[1724522246795,0.04740045,160.61,160.55,24.90217785]
[1724522247088,1.2101,160.75,160.57,23.88]
[1724522247089,23.88,160.69,160.57,23.88]
[1724522247281,23.88,160.67,160.58,1.02217785]
[1724522247484,23.88,160.67,160.54,25.1218]
[1724522247685,23.88,160.67,160.55,1.02215465]
[1724522248197,0.04488789,160.63,160.59,0.04293122]
[1724522248487,0.04090031,160.63,160.59,1.06499417]
[1724522248682,0.04090031,160.63,160.62,3.1115]
[1724522248883,0.04090031,160.63,160.62,6.23143694]
[1724522249080,0.04090031,160.63,160.59,0.04288097]
[1724522249488,0.04090031,160.63,160.59,23.92288097]
[1724522249694,0.04090031,160.63,160.62,3.1115]
[1724522250088,23.88,160.7,160.62,3.1115]
[1724522250288,4.41733916,160.74,160.62,3.1115]
[1724522250289,23.88,160.73,160.62,23.88]
[1724522250506,23.88,160.75,160.64,23.88]
[1724522251091,23.88,160.77,160.64,27.06185972]
[1724522251289,0.04174868,160.71,160.67,23.88]
[1724522251594,0.04174868,160.71,160.69,0.0430867]
[1724522251995,0.04174868,160.71,160.7,3.1099]
[1724522252199,23.88,160.8,160.69,3.1795446]
[1724522252385,23.88,160.75,160.68,1.2908]
[1724522252588,23.88,160.75,160.68,4.34889309]
[1724522252793,23.88,160.78,160.68,4.34889309]
[1724522253194,0.04178684,160.75,160.71,0.04094156]
[1724522253509,23.88,160.73,160.71,0.03914307]
[1724522253998,23.92395902,160.75,160.71,0.03914307]
[1724522257191,23.92395902,160.75,160.72,3.1094]
[1724522258795,23.92395902,160.75,160.73,3.1093]
[1724522259098,23.92395902,160.75,160.71,0.03914307]
[1724522259297,23.92395902,160.75,160.73,3.1094]
[1724522259495,23.92395902,160.75,160.71,0.03914307]
[1724522260193,23.88,160.73,160.71,0.03914307]
[1724522260900,26.9894,160.73,160.71,0.03914307]
[1724522261797,3.1096,160.72,160.71,0.03914307]
[1724522261995,3.1096,160.72,160.67,3.1105]
[1724522262299,23.88,160.7,160.67,3.1105]
[1724522262598,23.88,160.68,160.56,23.88]
[1724522262830,23.88,160.68,160.57,1.02219133]
[1724522263096,23.88,160.68,160.6,0.04565666]
[1724522263097,0.04135593,160.64,160.6,0.04565666]
[1724522263303,0.04135593,160.64,160.6,3.17255265]
[1724522263496,0.04135593,160.64,160.6,0.04565666]
[1724522263896,0.04135593,160.64,160.61,3.03577002]
[1724522264201,0.04135593,160.64,160.63,3.1113]
[1724522266905,23.88,160.69,160.66,3.1106]
[1724522267306,23.88,160.69,160.63,3.15571003]
[1724522267498,23.88,160.69,160.59,23.88]
[1724522267704,23.88,160.69,160.6,1.3223]
[1724522268036,0.04140404,160.66,160.65,3.1109]
[1724522268607,0.04140404,160.66,160.63,0.04167072]
[1724522268608,0.04140404,160.66,160.64,3.1111]
[1724522268901,23.88,160.65,160.63,0.04167072]
[1724522271409,23.88,160.62,160.53,1.2452]
[1724522271704,23.88,160.65,160.53,1.2452]
[1724522272301,0.04470344,160.61,160.59,3.1119]
[1724522272805,0.04470344,160.61,160.58,0.0444419]
[1724522273997,0.04470344,160.61,160.6,3.1119]
[1724522278807,23.88,160.71,160.59,23.88]
[1724522279109,26.9895,160.73,160.62,23.88]
[1724522279305,23.88,160.71,160.61,1.1955]
[1724522279811,0.04122226,160.68,160.64,0.04228028]
[1724522280213,0.04122226,160.68,160.67,3.1104]
[1724522284110,0.04122226,160.68,160.67,6.26120061]
[1724522284510,0.04122226,160.68,160.66,3.1107]
[1724522284712,0.04122226,160.68,160.64,0.04228028]
[1724522285412,1.29022226,160.68,160.64,0.04228028]
[1724522285618,23.88,160.67,160.64,0.04228028]
[1724522286139,3.1109,160.65,160.64,0.04228028]
[1724522286317,26.9909,160.65,160.64,0.04228028]
[1724522287223,23.88,160.65,160.42,24.302752]
[1724522287425,23.88,160.62,160.5,3.7608]
[1724522287619,23.88,160.62,160.51,1.02274225]
[1724522287924,23.88,160.64,160.52,23.88]
[1724522288120,23.88,160.64,160.53,1.02274225]
[1724522288333,0.04430913,160.6,160.57,0.03982812]
[1724522288822,0.04430913,160.6,160.58,3.1123]
[1724522289025,0.04430913,160.6,160.57,0.03982812]
[1724522289642,3.15620913,160.6,160.57,0.03982812]
[1724522289929,23.88,160.59,160.57,0.03982812]
[1724522291027,3.1123,160.58,160.57,0.03982812]
[1724522291237,3.1123,160.58,160.53,3.1131]
[1724522291238,23.88,160.59,160.37,6.50302182]
[1724522291429,23.88,160.54,160.43,2.6203]
[1724522291635,23.88,160.54,160.44,1.0231826]
[1724522292035,23.88,160.54,160.51,3.1136]
[1724522292236,27.03299349,160.54,160.51,0.04416189]
[1724522292452,23.91989349,160.54,160.51,0.04416189]
[1724522293039,27.03299349,160.54,160.51,0.04416189]
[1724522293241,23.91989349,160.54,160.51,0.04416189]
[1724522293636,0.03989349,160.54,160.51,0.04416189]
[1724522293844,25.0888,160.59,160.51,0.04416189]
[1724522294034,6.2178,160.76,160.54,23.88]
[1724522294035,2.4955,160.66,160.54,23.88]
[1724522294231,26.3755,160.66,160.55,1.2756]
[1724522294431,23.88,160.64,160.55,4.35113192]
[1724522294634,23.88,160.61,160.55,1.2756]
[1724522294838,0.03924516,160.6,160.57,3.1124]
[1724522295035,23.88,160.59,160.56,0.04256585]
[1724522295237,23.88,160.57,160.56,0.04256585]
[1724522297142,23.88,160.57,160.47,226.2984]
[1724522297143,47.76,160.57,160.44,3.1149]
[1724522297438,23.88,160.48,160.41,3.11079354]
[1724522297640,23.88,160.48,160.4,4.31367602]
[1724522297944,23.88,160.48,160.41,1.02334126]
[1724522298144,23.88,160.48,160.43,0.04510516]
[1724522298145,0.04071049,160.46,160.43,0.04510516]
[1724522298339,0.04071049,160.46,160.45,3.1146]
[1724522301041,23.88,160.53,160.43,27.01086475]
[1724522301242,23.88,160.55,160.43,26.96575959]
[1724522301441,23.88,160.52,160.44,1.02327019]
[1724522301940,0.04366077,160.5,160.49,3.114]
[1724522303132,0.04366077,160.5,160.46,3.13970557]
[1724522303333,0.04366077,160.5,160.46,0.04736236]
[1724522303944,0.04366077,160.5,160.47,3.16581477]
[1724522304341,0.04366077,160.5,160.49,3.114]
[1724522305546,23.88,160.58,160.55,3.1129]
[1724522305742,23.88,160.58,160.46,23.88]
[1724522305942,23.88,160.58,160.47,1.02310589]
[1724522306144,26.9923,160.58,160.47,2.31430589]
[1724522306444,26.9923,160.58,160.47,1.2912]
[1724522306644,0.04192143,160.54,160.53,3.1132]
[1724522308844,0.04192143,160.54,160.53,6.20905576]
[1724522309539,0.04192143,160.54,160.53,3.1132]
[1724522309741,0.04192143,160.54,160.51,0.04033082]
[1724522310737,0.04192143,160.54,160.53,3.1132]
[1724522310947,23.88,160.6,160.51,0.04033082]
[1724522311142,23.88,160.6,160.51,1.3236]
[1724522311851,23.88,160.63,160.53,23.88]
[1724522312140,0.04453209,160.6,160.56,0.04479537]
[1724522312346,0.04453209,160.6,160.56,3.15739537]
[1724522312541,23.92453209,160.6,160.56,0.04479537]
[1724522312937,3.1122,160.59,160.56,0.04479537]
[1724522313135,23.88,160.58,160.56,0.04479537]
[1724522313638,23.88,160.58,160.5,3.13537865]
[1724522313842,23.88,160.54,160.48,1.2934]
[1724522314145,23.88,160.54,160.52,3.1134]
[1724522314942,23.88,160.54,160.51,0.03940379]
[1724522315146,0.03969582,160.55,160.51,0.03940379]
[1724522315647,0.03969582,160.55,160.52,3.1134]
[1724522316241,0.03969582,160.55,160.53,3.1131]
[1724522316442,0.03969582,160.55,160.51,0.03940379]
[1724522317044,0.03969582,160.55,160.54,3.113]
[1724522319751,26.9913,160.63,160.58,3.1123]
[1724522319946,23.88,160.63,160.52,1.3086]
[1724522320153,28.2482,160.65,160.6,3.1117]
[1724522320649,0.04323415,160.64,160.61,0.04601752]
[1724522321142,0.04323415,160.64,160.61,3.2111887]
[1724522321452,0.04323415,160.64,160.63,3.1113]
[1724522327053,23.88,160.7,160.61,0.04601752]
[1724522327256,23.88,160.7,160.6,27.02272565]
[1724522328262,0.0394289,160.67,160.66,3.1106]
[1724522331755,6.2149,160.84,160.7,3.1098]
[1724522331978,23.88,160.77,160.65,23.88]
[1724522332164,23.88,160.77,160.66,1.3126]
[1724522332481,1.2655,160.76,160.66,1.3126]
[1724522332853,0.04016987,160.73,160.69,0.0452516]
[1724522333956,0.04016987,160.73,160.71,3.1096]
[1724522334158,0.04016987,160.73,160.69,0.0452516]
[1724522335163,23.88,160.72,160.69,0.0452516]
[1724522335564,3.1099,160.7,160.69,0.0452516]
[1724522335763,26.9899,160.7,160.69,0.0452516]
[1724522338361,23.88,160.7,160.6,3.14272565]
[1724522338670,23.88,160.67,160.59,3.718]
[1724522338874,23.88,160.67,160.59,3.03794003]
[1724522339064,23.88,160.67,160.58,24.88]
[1724522339464,0.04478533,160.64,160.61,0.04742296]
[1724522341074,0.04478533,160.64,160.63,3.1113]
[1724522347668,0.04478533,160.64,160.61,0.04742296]
[1724522347976,0.04478533,160.64,160.61,3.20903786]
[1724522348179,0.04478533,160.64,160.61,0.04742296]
[1724522348770,0.04478533,160.64,160.63,3.1113]
[1724522357887,0.04478533,160.64,160.61,0.04742296]
[1724522358681,23.92478533,160.64,160.61,0.04742296]
[1724522358881,3.1115,160.62,160.61,0.04742296]
[1724522359080,3.1115,160.62,160.57,6.29703108]
[1724522359780,3.1115,160.62,160.57,3.1124]
[1724522359979,3.1117,160.61,160.58,0.04559325]
[1724522361182,23.88,160.6,160.39,6.232]
[1724522361382,1.271,160.6,160.46,25.1964]
[1724522361602,25.151,160.6,160.48,24.90281817]
[1724522361787,25.151,160.6,160.49,1.02281817]
[1724522361998,3.1123,160.58,160.49,1.02281817]
[1724522362187,0.04347059,160.55,160.52,0.0427387]
[1724522363086,0.04347059,160.55,160.53,3.1131]
[1724522363784,0.04347059,160.55,160.52,3.1561387]
[1724522363989,0.04347059,160.55,160.52,0.0427387]
[1724522364286,23.92347059,160.55,160.52,0.0427387]
[1724522364482,27.03637059,160.55,160.52,0.0427387]
[1724522364725,0.04347059,160.55,160.53,3.1131]
[1724522365186,0.04347059,160.55,160.54,3.113]
[1724522370093,0.04347059,160.55,160.52,0.0427387]
[1724522370094,23.88,160.64,160.6,3.1118]
[1724522371195,23.92738312,160.64,160.62,3.1115]
[1724522371387,23.92738312,160.64,160.6,0.04626319]
[1724522371791,23.88,160.62,160.6,0.04626319]
[1724522372893,3.112,160.6,160.56,3.1126]
[1724522373291,23.88,160.62,160.5,23.88]
[1724522373791,0.04289455,160.58,160.54,0.04512212]
[1724522373995,0.04289455,160.58,160.57,3.1125]
[1724522374221,0.04289455,160.58,160.57,6.21395743]
[1724522374703,7.34429859,161.04,160.57,6.21395743]
[1724522374704,43.5724198,160.76,160.57,26.98145743]
[1724522374889,23.88,160.73,160.61,23.88]
[1724522375294,3.1096,160.72,160.67,3.1104]
[1724522375683,0.04241667,160.71,160.68,0.04563555]
[1724522375884,23.92241667,160.71,160.68,0.04563555]
[1724522377096,0.04241667,160.71,160.68,0.04563555]
[1724522377598,0.04241667,160.71,160.68,3.15593555]
[1724522377791,0.04241667,160.71,160.68,0.04563555]
[1724522378190,0.04241667,160.71,160.68,3.15593555]
[1724522378392,0.04241667,160.71,160.68,0.04563555]
[1724522378592,0.04241667,160.71,160.69,3.1101]
[1724522378791,0.04241667,160.71,160.68,0.04563555]
[1724522379393,0.04241667,160.71,160.68,3.15583555]
[1724522379889,23.92241667,160.71,160.68,0.04563555]
[1724522381495,0.04241667,160.71,160.68,0.04563555]
[1724522382196,0.04241667,160.71,160.7,3.1099]
[1724522385011,23.88,160.8,160.74,3.1091]
[1724522385300,6.43533292,160.79,160.74,3.1091]
[1724522385497,2.4649,160.84,160.73,23.88]
[1724522385691,8.90095282,160.84,160.73,27.05586696]
[1724522386023,0.04016232,160.8,160.77,0.0425145]
[1724522386609,0.04016232,160.8,160.78,23.88]
[1724522386802,0.04016232,160.8,160.79,3.1082]
[1724522388605,1.2317,160.88,160.78,23.88]
[1724522389705,0.04160155,160.85,160.81,0.04024006]
[1724522390095,0.04160155,160.85,160.82,3.1076]
[1724522390295,0.04160155,160.85,160.81,0.04024006]
[1724522391005,3.14880155,160.85,160.81,0.04024006]
[1724522391202,0.04160155,160.85,160.81,0.04024006]
[1724522391710,1.30720155,160.85,160.81,0.04024006]
[1724522392106,23.88,160.83,160.74,1.2722]
[1724522392404,23.88,160.83,160.71,23.88]
[1724522392603,3.1083,160.79,160.71,23.88]
[1724522392808,23.88,160.83,160.71,23.88]
[1724522392999,23.88,160.83,160.73,23.88]
[1724522393196,0.04703965,160.8,160.73,23.88]
[1724522393396,0.04703965,160.8,160.76,0.04203699]
[1724522394305,0.04703965,160.8,160.77,3.1084]
[1724522394709,0.04703965,160.8,160.76,0.04203699]
[1724522395408,0.04703965,160.8,160.76,3.20025058]
[1724522396002,0.04703965,160.8,160.77,3.1084]
[1724522396707,0.04703965,160.8,160.78,3.1083]
[1724522396906,0.04703965,160.8,160.78,23.88]
[1724522397812,0.04703965,160.8,160.79,3.1082]
[1724522397999,2.587,160.89,160.78,23.88]
[1724522398198,2.587,160.89,160.8,23.88]
[1724522398405,2.587,160.89,160.82,3.1075]
[1724522398599,2.587,160.89,160.8,23.88]
[1724522399005,3.1071,160.85,160.83,0.04496529]
[1724522399905,0.03977963,160.86,160.83,0.04496529]
[1724522402408,3.1072,160.84,160.83,0.04496529]
[1724522403507,0.03977963,160.86,160.83,0.04496529]
[1724522404205,23.88,160.85,160.73,25.1801]
[1724522404410,23.88,160.85,160.73,28.21819215]
[1724522404618,3.1082,160.79,160.73,28.21819215]
[1724522404808,3.1082,160.79,160.73,1.3001]
[1724522405013,23.88,160.82,160.73,3.03747061]
[1724522405209,3.1085,160.78,160.73,3.1092]
[1724522405419,3.1085,160.78,160.76,0.04434348]
[1724522405608,0.04572271,160.79,160.76,0.04434348]
[1724522405609,3.1086,160.77,160.76,0.04434348]
[1724522405915,23.88,160.77,160.7,3.1235152]
[1724522406103,3.1087,160.77,160.7,3.1235152]
[1724522406304,1.2422,160.81,160.7,23.88]
[1724522406614,1.2422,160.81,160.72,23.88]
[1724522406808,3.1077,160.82,160.75,0.04669258]
[1724522407112,0.04651829,160.78,160.75,0.04669258]
[1724522407309,0.04651829,160.78,160.76,3.1088]
[1724522407523,0.04651829,160.78,160.75,0.04669258]
[1724522409619,0.04651829,160.78,160.75,3.15569258]
[1724522411907,0.04651829,160.78,160.76,3.1087]
[1724522412107,0.04651829,160.78,160.75,0.04669258]
[1724522412618,0.04651829,160.78,160.77,3.1086]
[1724522413113,0.04651829,160.78,160.75,0.04669258]
[1724522413617,0.04651829,160.78,160.77,3.1086]
[1724522414016,3.1086,160.77,160.75,0.04669258]
[1724522414212,0.04651829,160.78,160.75,0.04669258]
[1724522414610,0.04651829,160.78,160.76,3.1088]
[1724522415020,0.04651829,160.78,160.75,0.04669258]
[1724522415815,0.04651829,160.78,160.75,3.15569258]
[1724522416012,23.88,160.77,160.65,1.2367]
[1724522416215,23.88,160.77,160.66,26.98393326]
[1724522416421,3.1087,160.77,160.7,23.88]
[1724522416612,23.88,160.79,160.7,23.88]
[1724522416920,3.1093,160.74,160.69,3.11885153]
[1724522417220,3.1093,160.74,160.73,0.045948]
[1724522417536,3.14931975,160.75,160.72,0.04502749]
[1724522417716,3.14846852,160.75,160.72,0.04233118]
[1724522418317,0.03946852,160.75,160.72,0.04233118]
[1724522421317,0.03946852,160.75,160.72,3.15183118]
[1724522422619,0.03946852,160.75,160.73,3.1093]
[1724522423027,0.03946852,160.75,160.72,0.04233118]
[1724522423628,3.1092,160.74,160.72,0.04233118]
[1724522423834,0.03946852,160.75,160.72,0.04233118]
[1724522424219,3.14846852,160.75,160.72,0.04233118]
[1724522426129,0.03946852,160.75,160.72,0.04233118]
[1724522426723,3.1092,160.74,160.72,0.04233118]
[1724522426923,0.03946852,160.75,160.72,0.04233118]
[1724522429324,3.14846852,160.75,160.72,0.04233118]
[1724522429530,0.03946852,160.75,160.72,0.04233118]
[1724522431533,3.14846852,160.75,160.72,0.04233118]
[1724522432632,0.03946852,160.75,160.72,0.04233118]
[1724522434037,0.03946852,160.75,160.72,3.15183118]
[1724522434230,0.03946852,160.75,160.72,0.04233118]
[1724522435031,0.03946852,160.75,160.74,3.1092]
[1724522437749,0.03946852,160.75,160.74,6.29454276]
[1724522437951,0.03946852,160.75,160.74,3.1092]
[1724522438651,0.03946852,160.75,160.74,6.27661913]
[1724522438857,0.03946852,160.75,160.74,3.1092]
[1724522439859,0.03946852,160.75,160.74,6.24677887]
[1724522441553,0.03946852,160.75,160.74,3.1092]
[1724522442253,0.03946852,160.75,160.74,6.19560977]
[1724522442759,0.03946852,160.75,160.74,3.1092]
[1724522444054,0.03946852,160.75,160.74,6.19933957]
[1724522444857,0.03946852,160.75,160.74,6.14196066]
[1724522445963,0.03946852,160.75,160.74,3.1092]
[1724522446159,0.03946852,160.75,160.73,4.3817]
[1724522446473,0.03946852,160.75,160.73,3.1093]
[1724522446679,0.03946852,160.75,160.74,3.1092]
[1724522446858,0.03946852,160.75,160.72,0.04233118]
[1724522447964,0.03946852,160.75,160.72,3.15183118]
[1724522448957,0.03946852,160.75,160.72,0.04233118]
[1724522449161,0.03946852,160.75,160.72,23.92233118]
[1724522449665,0.03946852,160.75,160.74,3.1092]
[1724522451858,6.42839107,160.8,160.74,23.88]
[1724522452161,1.2685,160.83,160.74,23.88]
[1724522452363,3.108,160.81,160.74,23.88]
[1724522452667,6.42870384,160.8,160.74,23.88]
[1724522452962,0.04048108,160.79,160.75,0.04672665]
[1724522454464,0.04048108,160.79,160.77,3.1086]
[1724522454765,0.04048108,160.79,160.75,0.04672665]
[1724522455669,6.46860094,160.79,160.75,0.04672665]
[1724522455863,0.04048108,160.79,160.75,0.04672665]
[1724522456664,6.46840499,160.79,160.75,0.04672665]
[1724522456966,0.04048108,160.79,160.75,0.04672665]
[1724522457371,3.14868108,160.79,160.75,3.15562665]
[1724522457861,9.57667824,160.79,160.75,3.15562665]
[1724522458065,3.14868108,160.79,160.75,3.15562665]
[1724522458964,9.57453012,160.79,160.75,3.15562665]
[1724522459165,3.14868108,160.79,160.75,3.15562665]
[1724522459671,6.42667833,160.78,160.75,3.15562665]
[1724522459971,3.14868108,160.79,160.75,3.15562665]
[1724522461072,0.04048108,160.79,160.76,3.1088]
[1724522461370,0.04048108,160.79,160.75,0.04672665]
[1724522461371,6.46689487,160.79,160.75,0.04672665]
[1724522461560,0.04048108,160.79,160.75,0.04672665]
[1724522461962,19.1,160.97,160.77,19.1]
[1724522462170,6.4264531,160.82,160.77,19.1]
[1724522462468,3.107,160.86,160.8,3.1079]
[1724522462876,3.1072,160.85,160.8,3.1079]
[1724522463171,0.04227322,160.84,160.81,0.04081081]
[1724522463872,3.14957322,160.84,160.81,0.04081081]
[1724522464674,0.04227322,160.84,160.81,0.04081081]
[1724522464880,19.1,160.82,160.81,0.04081081]
[1724522466371,22.2076,160.82,160.81,0.04081081]
[1724522468104,3.1076,160.82,160.81,0.04081081]
[1724522469278,19.14227322,160.84,160.81,0.04081081]
[1724522470175,3.1074,160.83,160.81,0.04081081]
[1724522470673,3.1075,160.83,160.81,0.04081081]
[1724522470874,0.04227322,160.84,160.81,0.04081081]
[1724522471973,3.1076,160.83,160.81,0.04081081]
[1724522472573,19.14227322,160.84,160.81,0.04081081]
[1724522473173,3.1076,160.82,160.81,0.04081081]
[1724522477698,19.1,160.82,160.72,1.3135]
[1724522477985,19.1,160.79,160.72,1.3135]
[1724522478179,3.1084,160.78,160.73,3.1092]
[1724522478777,0.04696315,160.77,160.74,0.04703747]
[1724522479979,0.04696315,160.77,160.74,3.15603747]
[1724522481874,0.04696315,160.77,160.75,3.1089]
[1724522484008,0.04696315,160.77,160.76,3.1088]
[1724522487079,3.1073,160.84,160.79,3.1081]
[1724522487278,19.1,160.85,160.74,19.1]
[1724522487484,22.14084139,160.85,160.74,19.1]
[1724522487702,3.1075,160.83,160.78,3.1084]
[1724522488087,0.040532,160.82,160.79,0.04408113]
[1724522488384,0.040532,160.82,160.79,3.15218113]
[1724522488983,0.040532,160.82,160.79,0.04408113]
[1724522489180,9.30744278,160.97,160.79,0.04408113]
[1724522489181,1.2131,160.94,160.8,22.13244986]
[1724522489485,3.1061,160.91,160.85,3.107]
[1724522489684,19.1,160.93,160.83,3.08497462]
[1724522489887,19.1,160.91,160.8,21.5667]
[1724522490088,3.1064,160.89,160.84,3.1071]
[1724522490383,0.04293453,160.88,160.85,0.03929122]
[1724522490890,0.04293453,160.88,160.86,3.1067]
[1724522491682,0.04293453,160.88,160.85,3.14629122]
[1724522491885,0.04293453,160.88,160.85,0.03929122]
[1724522493994,0.04293453,160.88,160.85,3.14629122]
[1724522495291,0.04293453,160.88,160.85,0.03929122]
[1724522497396,0.04293453,160.88,160.85,3.14629122]
[1724522497800,0.04293453,160.88,160.85,0.03929122]
[1724522497997,22.19764278,160.97,160.92,3.1056]
[1724522498195,19.1,160.97,160.87,19.1]
[1724522498499,3.1051,160.96,160.87,19.1]
[1724522498797,19.1,160.97,160.89,19.1]
[1724522499002,4.28541867,160.98,160.89,19.1]
[1724522499003,0.04588078,160.95,160.91,0.04500087]
[1724522499207,0.04588078,160.95,160.92,3.15954786]
[1724522499395,19.1,161.04,160.93,21.7248]
[1724522499705,19.1,160.99,160.91,3.15737336]
[1724522500020,19.1,160.97,160.89,19.1]
[1724522500199,19.1,160.97,160.92,3.1057]
[1724522500399,0.04195997,160.95,160.91,0.04469451]
[1724522500700,0.04195997,160.95,160.94,3.1053]
[1724522501195,19.1,161.04,160.93,19.1]
[1724522501396,19.1,161.04,160.94,2.5803]
[1724522501597,3.1036,161.03,160.97,3.1047]
[1724522502195,0.04136567,161.02,160.98,0.04571298]
[1724522503137,0.04136567,161.02,160.98,19.14571298]
[1724522504189,0.04136567,161.02,160.99,3.1043]
[1724522504391,0.04136567,161.02,160.98,0.04571298]
[1724522504610,19.1,160.99,160.98,0.04571298]
[1724522504795,22.2043,160.99,160.98,0.04571298]
[1724522505595,19.1,160.99,160.98,0.04571298]
[1724522506096,19.1,161.01,160.98,0.04571298]
[1724522508003,19.1,161.01,160.98,3.15011298]
[1724522508503,0.04136567,161.02,160.98,3.15011298]
[1724522510797,0.04136567,161.02,160.98,0.04571298]
[1724522511197,0.04136567,161.02,160.98,3.12157787]
[1724522511399,0.04136567,161.02,160.98,0.04571298]
[1724522511904,0.04136567,161.02,160.99,3.06934625]
[1724522512104,0.04136567,161.02,160.99,6.17354625]
[1724522512911,0.04136567,161.02,160.98,0.04571298]
[1724522513123,19.14136567,161.02,160.98,0.04571298]
[1724522514002,19.1,161.0,160.98,0.04571298]
[1724522514401,3.1043,160.99,160.98,0.04571298]
[1724522522012,22.2042,161.0,160.98,0.04571298]
[1724522522307,19.1,161.0,160.98,0.04571298]
[1724522524100,22.2043,161.0,160.98,0.04571298]
[1724522524811,19.1,160.99,160.9,4.35693454]
[1724522525008,3.15095079,161.03,160.88,1.3038]
[1724522525009,19.1,160.96,160.88,1.3038]
[1724522525209,3.1052,160.95,160.89,3.1061]
[1724522525615,19.1,160.96,160.88,1.3038]
[1724522525910,0.04224261,160.94,160.9,0.04154427]